Cogmind - Beta 14 @@@ ROGUE MODE // 2024.10.13 @ 18:47:58 Player: star Result: Destroyed by S-27 Virus with Autogun Performance ------------- Evolutions (3) 1500 Regions Visited (11) 2200 Robots Destroyed (152) 760 Value Destroyed (5369) 5369 Prototype IDs (29) 580 Alien Tech Used (0) 0 Bonus (2580) 2580 TOTAL SCORE: 12989 Bonus ------- High Alert Combat Kills 1269 Follower Combat Kills 111 Entered Garrisons 400 Used RIF Installer 500 Aligned with FarCom 300 Cogmind --------- Core Integrity 0/700 Matter 298/300 Energy 100/100 System Corruption 13% Temperature Cool (0) Movement Hovering (200) Ox2 Location -7/Garrison Parts ------- > --- POWER (1) -------- (None) > --- PROPULSION (3) --- Light Treads Gravmag System > --- UTILITY (3) ------ Large Storage Unit Relay Coupler [NC] (26) Relay Coupler [Grunt] (5) > --- WEAPON (6) ------- Improved Datajack Longsword +1 > --- INVENTORY (15) --- Light Treads Armored Treads Carbon-fiber Leg Advanced Heat Sink High-capacity Battery (250) Improved Transmission Jammer Improved Light Armor Plating Improved Medium Armor Plating Graphene Brace Graphene Brace Relay Coupler [NC] (42) Relay Coupler [Grunt] (41) Relay Coupler [Duelist] (31) Recalibrator Splice Drone Bay (6/6) Peak State ------------ > --- POWER ------------ Improved Deuterium Engine > --- PROPULSION ------- Armored Medium Treads Armored Heavy Treads > --- UTILITY ---------- Advanced Heat Sink Large Storage Unit Matter Filter > --- WEAPON ----------- Proton Cannon Improved Assault Rifle Enhanced Autogun Enhanced Autogun Heavy Linear Accelerator > --- INVENTORY -------- Armored Treads Carbon-fiber Leg High-capacity Battery Particle Charger Improved Kinecellerator Improved Transmission Jammer Improved Light Armor Plating Graphene Brace Graphene Brace Recalibrator Splice Drone Bay Improved Grenade Launcher Improved Datajack Longsword +1 [Rating: 74] Favorites ----------- Power Improved Deuterium Engine Engine Improved Deuterium Engine Power Core Light Nuclear Core Propulsion Carbon-fiber Leg Treads Light Treads Leg Carbon-fiber Leg Wheel Wheel Hover Unit Gravmag System Flight Unit Flight Unit Utility Large Storage Unit Device Matter Filter Storage Large Storage Unit Processor Transport Network Coupler Hackware Relay Coupler [NC] Protection Hardened Light Armor Plating Weapon Enhanced Autogun Energy Gun Improved Medium Laser Energy Cannon Proton Cannon Ballistic Gun Enhanced Autogun Ballistic Cannon Heavy Linear Accelerator Launcher Improved Grenade Launcher Slashing Weapon Longsword +1 Special Melee Weapon Improved Datajack Build | -11 -10 -10 -9 -9 -9 -8 -8 -7 -7 -7 -7 ------- Run | Yrd Mat Min Mat Min Exi Min Mat Fac Gar Fac Gar Slots Evolved 6 | . . . 2 . . . 2 2 . . . Power . | . . . . . . . . . . . . Propulsion 1 | . . . . . . . 1 . . . . Utility 1 | . . . 1 . . . . . . . . Weapon 4 | . . . 1 . . . 1 2 . . . Parts Attached 139 | 6 . 3 38 2 4 3 22 6 29 . 26 Power 11 | 1 . 1 3 . . . 2 . 1 . 3 Engine 9 | 1 . 1 2 . . . 2 . 1 . 2 Core 2 | . . . 1 . . . . . . . 1 Reactor . | . . . . . . . . . . . . Propulsion 36 | 2 . . 7 . . 2 4 . 12 . 9 Treads 10 | . . . . . . . . . 5 . 5 Leg 15 | . . . 2 . . 2 4 . 7 . . Wheel 6 | 2 . . 4 . . . . . . . . Hover 4 | . . . . . . . . . . . 4 Flight 1 | . . . 1 . . . . . . . . Utility 31 | 1 . 1 7 1 . 1 6 2 4 . 8 Device 13 | . . 1 4 . . . . 1 4 . 3 Storage 5 | 1 . . 2 . . . 2 . . . . Processor 5 | . . . 1 . . 1 3 . . . . Hackware 2 | . . . . . . . . . . . 2 Protection 6 | . . . . 1 . . 1 1 . . 3 Artifact . | . . . . . . . . . . . . Weapon 61 | 2 . 1 21 1 4 . 10 4 12 . 6 Energy Gun 17 | 1 . 1 8 1 2 . 2 . . . 2 Energy Cannon 6 | . . . 4 . . . . . 2 . . Ballistic Gun 28 | 1 . . 9 . 1 . 6 4 6 . 1 Ballistic Cannon 2 | . . . . . . . . . 2 . . Launcher 5 | . . . . . . . 2 . 2 . 1 Special Weapon . | . . . . . . . . . . . . Impact Weapon . | . . . . . . . . . . . . Slashing Weapon 2 | . . . . . 1 . . . . . 1 Piercing Weapon . | . . . . . . . . . . . . Special Melee Weapon 1 | . . . . . . . . . . . 1 Unidentified Prototypes 6 | . . 1 3 . . . 2 . . . . Corrupted Parts 1 | . . . . . . . . . . . 1 System Corruption 8 | . . . . . . . . . . . 8 Parts Lost 40 | . . 2 10 . . . . 1 13 . 14 Power 5 | . . 1 1 . . . . . . . 3 Propulsion 13 | . . 1 4 . . . . . 5 . 3 Utility 4 | . . . . . . . . . 3 . 1 Weapon 18 | . . . 5 . . . . 1 5 . 7 Highest Loss Streak 7 | . . 1 7 . . . . 1 4 . 5 To Critical Strikes . | . . . . . . . . . . . . Average Slot Usage (%) 85 | . 85 85 86 100 74 100 100 98 88 84 67 Engine 8 | . 14 13 10 11 11 11 9 7 7 7 4 Treads 8 | . . . . . . . . . 15 15 17 Leg 10 | . . . 8 22 22 22 27 23 4 . . Wheel 2 | . 28 24 10 . . . . . . . . Device 7 | . . 4 6 11 11 7 . 4 11 15 7 Storage 8 | . 14 14 11 11 11 11 9 7 7 7 7 Processor 3 | . . . 5 . . 3 15 7 . . . Protection 2 | . . . . 10 11 11 2 2 . . 2 Energy Gun 7 | . 14 23 13 22 2 22 12 12 . . 1 Energy Cannon 3 | . . . 7 . . . . . 5 7 2 Ballistic Gun 17 | . 14 4 10 11 1 11 22 31 29 23 5 Ballistic Cannon 1 | . . . . . . . . . 3 7 2 Slashing Weapon 1 | . . . . . 4 . . . . . 4 Peak Build Rating 74 | 6 6 13 20 21 26 24 39 48 74 74 74 Average Rating 37 | 4 6 8 14 20 16 21 33 47 55 74 44 On Entrance 28 | . 6 6 12 18 21 22 24 38 48 74 74 Naked Turns . | . . . . . . . . . . . . Heaviest Build 81 | 12 12 20 32 32 32 32 44 50 78 78 81 Greatest Support 87 | 26 26 26 26 20 20 30 45 45 87 87 87 Greatest Overweight (x) 11 | . . 1 2 1 1 1 . 1 3 . 11 Average Overweight (x) . | . . . . 1 1 1 . . . . . Largest Inventory Capacity 15 | 8 8 8 10 10 10 10 15 15 15 15 15 Average Capacity 13 | 6 8 8 9 10 10 10 13 15 15 15 15 Most Carried 15 | 1 2 5 10 10 10 10 15 15 15 15 15 Average Carried 11 | . 1 3 7 9 9 9 12 13 13 14 14 Final Capacity 15 | 8 8 8 10 10 10 10 15 15 15 15 15 Final Carried 15 | 1 2 4 10 10 10 10 15 14 14 15 15 Class Distribution -------------------- 24% | Executioner 16% | Skirmisher 13% | Scavenger-Mutant 12% | Scavenger-Executioner 10% | Scavenger-Skirmisher 6% | Mutant 4% | Bothacker-Mutant 4% | Scavenger-Tank 4% | Gunner Dominant Class ---------------- Mutant | -10/Materials Mutant | -10/Mines Scavenger-Skirmisher | -9/Materials Scavenger-Tank | -9/Mines Scavenger-Mutant | -9/Exiles Scavenger-Skirmisher | -8/Mines Skirmisher | -8/Materials Executioner | -7/Factory Executioner | -7/Garrison Executioner | -7/Factory Scavenger-Mutant | -7/Garrison Resources | -11 -10 -10 -9 -9 -9 -8 -8 -7 -7 -7 -7 ----------- Run | Yrd Mat Min Mat Min Exi Min Mat Fac Gar Fac Gar Matter Collected 4268 | 205 15 72 641 10 . 97 787 98 1417 . 926 Remotely 1099 | . . . . . . . . . 1099 . . Salvage Created 5257 | . 15 113 1167 . . 97 1567 117 1134 . 1047 Parts 316 | . 3 6 70 . . 11 88 10 61 . 67 Haulers Intercepted 9 | . . . 5 . . . 4 . . . . Recyclers Shooed 2 | . . . 2 . . . . . . . . Parts Field Recycled . | . . . . . . . . . . . . Retrieved Matter . | . . . . . . . . . . . . Parts Self-Destructed . | . . . . . . . . . . . . Prevented . | . . . . . . . . . . . . Kills | -11 -10 -10 -9 -9 -9 -8 -8 -7 -7 -7 -7 ------- Run | Yrd Mat Min Mat Min Exi Min Mat Fac Gar Fac Gar Combat Hostiles Destroyed 129 | . 1 6 22 . . 4 29 5 33 . 29 Melee 11 | . . . . . . . . . . . 11 Guns 70 | . 1 6 15 . . 4 22 3 15 . 4 Cannons 27 | . . . 3 . . . . . 11 . 13 AOE 21 | . . . 4 . . . 7 2 7 . 1 Classes Destroyed 17 | . 1 1 6 . . 1 4 1 2 . 1 Worker 2 | . . . 1 . . . 1 . . . . Builder 2 | . . 1 1 . . . . . . . . Tunneler 2 | . . . . . . . 2 . . . . Hauler 9 | . . . 5 . . . 4 . . . . Recycler 2 | . . . 1 . . . 1 . . . . Mechanic 1 | . . . 1 . . . . . . . . Operator 2 | . . . . . . . 1 . 1 . . Watcher 3 | . . . . . . . 2 . 1 . . Swarmer 53 | . 1 6 6 . . 3 7 4 16 . 10 Grunt 47 | . . . 10 . . . 15 . 12 . 10 Brawler 3 | . . . . . . . 2 . 1 . . Duelist 2 | . . . . . . . . . 2 . . Sentry 16 | . . . 6 . . . 5 . 1 . 4 Specialist 2 | . . . . . . . . . . . 2 Hunter 1 | . . . . . . 1 . . . . . Programmer 4 | . . . . . . . . 1 . . 3 Heavy 1 | . . . . . . . . . 1 . . Best Kill Streak 11 | . 1 3 11 . . 3 6 4 3 . 5 Combat Bots Only 7 | . 1 3 7 . . 3 5 4 3 . 5 Max Kills in Single Turn 6 | . 1 1 6 . . 1 2 2 2 . 1 Gunslinging 1 | . . . . . . . 1 1 . . . Exploded 4 | . . . 4 . . . 2 2 2 . 1 Melee 1 | . . . . . . . . . . . 1 Uniques/NPCs Destroyed . | . . . . . . . . . . . . Combat | -11 -10 -10 -9 -9 -9 -8 -8 -7 -7 -7 -7 -------- Run | Yrd Mat Min Mat Min Exi Min Mat Fac Gar Fac Gar Hostile Shots Fired 852 | . 11 29 126 . . 11 62 11 206 . 396 Missed 230 | . 2 6 34 . . 2 16 5 49 . 116 Damage Taken 7831 | . 74 181 1285 . . 95 726 138 2445 . 2887 Core 1233 | . 23 45 356 . . 23 80 29 367 . 310 Absorbed by Shields 23 | . . . . . . . . . 23 . . Reduced by Siege Mode 125 | . . . . . . . . . . . 125 Core Remaining (%) 65 | 100 . 72 . . . 5 85 . . . . Volleys Fired 265 | . 4 12 70 . . 5 57 4 76 . 37 Largest 6 | . 2 2 3 . . 3 4 6 6 . 5 Hottest 273 | . 70 90 201 . . 135 151 201 251 . 273 Shots Fired 862 | . 8 24 191 1 . 14 197 23 292 1 111 Gun 730 | . 8 24 163 1 . 14 190 23 235 . 72 Cannon 116 | . . . 28 . . . . . 51 1 36 Launcher 16 | . . . . . . . 7 . 6 . 3 Special . | . . . . . . . . . . . . Kinetic 594 | . 4 . 99 . . 5 135 17 254 . 80 Thermal 180 | . 4 12 91 1 . 9 33 4 7 . 19 Explosive 16 | . . . . . . . 7 . 6 . 3 Electromagnetic 72 | . . 12 1 . . . 22 2 25 1 9 Robot Hit Streak 20 | . 3 4 20 . . 5 12 2 13 . 12 Robot Miss Streak 8 | . 2 3 8 1 . 1 5 6 8 . 5 Penetration Max . | . . . . . . . . . . . . Secondary Targets 11 | . . 1 2 . . . 3 2 3 . . Max Gunslinging Chain 1 | . . 1 1 . . . 1 1 1 . . Shots Hit Robots 500 | . 5 13 114 . . 8 123 9 139 . 89 Core Hits 252 | . 2 7 38 . . 5 72 8 82 . 38 Critical Kills 2 | . . . 1 . . . 1 . . . . Critical Parts Destroyed 2 | . . . 1 . . . . . 1 . . Critical Strikes 24 | . 1 2 11 . . . 3 . 1 . 6 Burn 14 | . 1 2 9 . . . 2 . . . . Meltdown 1 | . . . 1 . . . . . . . . Destroy 3 | . . . 1 . . . 1 . 1 . . Blast 3 | . . . . . . . . . . . 3 Sever 3 | . . . . . . . . . . . 3 Melee Attacks 103 | . . . . . . . . . . . 103 Impact . | . . . . . . . . . . . . Slashing 98 | . . . . . . . . . . . 98 Piercing . | . . . . . . . . . . . . Sneak Attacks . | . . . . . . . . . . . . Combat Hostiles . | . . . . . . . . . . . . Follow-up Attacks . | . . . . . . . . . . . . Damage Inflicted 13181 | . 64 163 2228 2 . 130 2843 309 4030 . 3412 Guns 6561 | . 64 163 1375 . . 130 2057 138 1877 . 757 Cannons 2846 | . . . 332 . . . . . 1048 . 1466 Explosions 2763 | . . . 521 . . . 783 171 1081 . 207 Melee 982 | . . . . . . . . . . . 982 Ramming 29 | . . . . 2 . . 3 . 24 . . Kinetic 6648 | . 39 . 858 . . 13 1336 128 2415 . 1859 Thermal 2636 | . 25 73 1355 . . 117 441 171 235 . 219 Explosive 1801 | . . . . . . . 696 . 898 . 207 Electromagnetic 1085 | . . 90 15 . . . 367 10 458 . 145 Impact . | . . . . . . . . . . . . Slashing 982 | . . . . . . . . . . . 982 Piercing . | . . . . . . . . . . . . Highest Corruption 13 | . . . 5 5 5 5 . 1 3 3 13 Average Corruption 4 | . . . 5 5 5 5 . 1 2 3 6 Corruption Purged . | . . . . . . . . . . . . Corruption Blocked . | . . . . . . . . . . . . Effects 135 | . . . 17 9 12 5 . . 44 2 46 Message Errors 29 | . . . 4 2 5 3 . . 8 . 7 Matter Fused 31 | . . . 4 3 3 . . . 10 . 11 Heat Flow Errors 15 | . . . . 2 . 1 . . 2 1 9 Energy Discharges 16 | . . . 3 . 1 . . . 6 . 6 Parts Rejected 1 | . . . . . . . . . 1 . . Parts Fused 2 | . . . . . . . . . 1 . 1 Data Loss (minor) 22 | . . . 3 1 . . . . 10 . 8 Data Loss (major) 3 | . . . 1 . 1 . . . 1 . . Misfires 4 | . . . . 1 . . . . 1 1 1 Alerts 7 | . . . 1 . 2 . . . 3 . 1 Misdirections 1 | . . . . . . . . . . . 1 Weapon Failures 4 | . . . 1 . . 1 . . 1 . 1 Overload Shots . | . . . . . . . . . . . . Overflow Damage 531 | . . . 150 . . . 17 5 58 . 301 Projectiles 338 | . . . 8 . . . . . 45 . 285 Explosions 189 | . . . 142 . . . 17 5 13 . 12 Melee 4 | . . . . . . . . . . . 4 Knockbacks 3 | . . . . . . . . . 2 . 1 Impact . | . . . . . . . . . . . . Kinetic 3 | . . . . . . . . . 2 . 1 Secondary . | . . . . . . . . . . . . Self-Inflicted Damage 320 | . . . 155 . . . 107 56 2 . . Shots 8 | . . . 2 . . . 4 1 1 . . Rammed 9 | . . . 1 . . . . . 8 . . Targets Rammed 13 | . . . 1 1 . . 3 . 8 . . Kicked 4 | . . . . 1 . . 3 . . . . Crushed . | . . . . . . . . . . . . Highest Temperature 665 | . 27 90 416 125 . 355 455 198 650 258 665 Average Temperature 125 | . 12 52 103 63 . 169 122 101 138 131 156 Received Heat Transfer 1971 | . . . 429 . . . 261 . 447 . 834 Effects 37 | . . . 7 . . . 3 . 14 . 13 Shutdowns 6 | . . . . . . . 3 . 2 . 1 Energy Bleed 6 | . . . 5 . . . . . . . 1 Interference 6 | . . . 1 . . . . . 3 . 2 Matter Decay 4 | . . . . . . . . . 2 . 2 Short Circuit 3 | . . . 1 . . . . . 1 . 1 Damage (minor) 3 | . . . . . . . . . 2 . 1 Damage (major) 9 | . . . . . . . . . 4 . 5 Siege Activations 3 | . . . . . . . . . . . 3 Total Turns 36 | . . . . . . . . . . . 36 Longest Duration 17 | . . . . . . . . . . . 17 Robots Corrupted . | . . . . . . . . . . . . Combat Hostiles . | . . . . . . . . . . . . Parts Fried 5 | . . . . . . . 1 . 4 . . Impact Corruptions . | . . . . . . . . . . . . Robots Melted 2 | . . . 2 . . . . . . . . Combat Hostiles . | . . . . . . . . . . . . Parts Melted 11 | . . 1 7 . . 2 1 . . . . Heat Transferred 5540 | . 148 370 2903 . . 259 975 100 361 . 424 Parts Sabotaged . | . . . . . . . . . . . . Parts Stolen . | . . . . . . . . . . . . Parts Stripped . | . . . . . . . . . . . . Power Chain Reactions 5 | . . . . . . . 2 1 2 . . Alert | -11 -10 -10 -9 -9 -9 -8 -8 -7 -7 -7 -7 ------- Run | Yrd Mat Min Mat Min Exi Min Mat Fac Gar Fac Gar Peak Influence 1617 | . 65 180 714 237 . 100 573 389 1584 831 1617 Initial 831 | . . 25 70 237 . . 39 260 282 831 581 Average 662 | . 23 87 440 237 . 23 301 291 874 831 1125 Maximum Alert Level 5 | . . . 3 1 . . 2 1 4 3 5 Low Security (%) 18 | 100 100 100 23 . . 100 42 . . . . Level 1 15 | . . . 14 100 . . 14 100 12 . . Level 2 22 | . . . 55 . . . 42 . 21 . 9 Level 3 22 | . . . 6 . . . . . 37 100 41 Level 4 20 | . . . . . . . . . 29 . 49 Level 5 . | . . . . . . . . . . . . High Security . | . . . . . . . . . . . . Max Security . | . . . . . . . . . . . . Squads Dispatched 6 | . 1 . . . . . 4 1 . . . Investigation 3 | . 1 . . . . . 2 . . . . Extermination 1 | . . . . . . . . 1 . . . Reinforcement 1 | . . . . . . . 1 . . . . Assault 1 | . . . . . . . 1 . . . . Garrison . | . . . . . . . . . . . . Intercept . | . . . . . . . . . . . . Searches Triggered . | . . . . . . . . . . . . Construction Impeded . | . . . . . . . . . . . . Haulers Reinforced . | . . . . . . . . . . . . Active Scanning Responses . | . . . . . . . . . . . . Cargo Convoy Interrupts . | . . . . . . . . . . . . Stealth | -11 -10 -10 -9 -9 -9 -8 -8 -7 -7 -7 -7 --------- Run | Yrd Mat Min Mat Min Exi Min Mat Fac Gar Fac Gar Distress Signals 2 | . . . 1 . . . 1 . . . . Communications Jammed . | . . . . . . . . . . . . Distress Signals . | . . . . . . . . . . . . Times Spotted 176 | . 5 7 33 . . 4 44 7 39 . 37 Peak Tracking Total 10 | . 5 3 10 . . 3 6 5 4 1 4 Tactical Retreats 15 | . 1 1 3 . . . 2 . 3 . 5 Traps | -11 -10 -10 -9 -9 -9 -8 -8 -7 -7 -7 -7 ------- Run | Yrd Mat Min Mat Min Exi Min Mat Fac Gar Fac Gar Traps Triggered 11 | . 1 . 1 . . . 1 . 5 . 3 Indirectly . | . . . . . . . . . . . . Trap Hack Attempts 4 | . . . . . . . . . . . 4 Triggered . | . . . . . . . . . . . . Disarmed . | . . . . . . . . . . . . Reprogrammed . | . . . . . . . . . . . . Reused . | . . . . . . . . . . . . Traps Extracted . | . . . . . . . . . . . . Installed . | . . . . . . . . . . . . Triggered . | . . . . . . . . . . . . Machines | -11 -10 -10 -9 -9 -9 -8 -8 -7 -7 -7 -7 ---------- Run | Yrd Mat Min Mat Min Exi Min Mat Fac Gar Fac Gar Machines Disabled 18 | . . 1 12 . . . . . 3 . 2 Max in Single Turn 11 | . . 1 11 . . . . . 1 . 1 Garrison Relay 2 | . . . . . . . . . . . 2 Machines Repaired . | . . . . . . . . . . . . Machines Dismantled . | . . . . . . . . . . . . Machines Sabotaged . | . . . . . . . . . . . . Overloaded Fab Kills . | . . . . . . . . . . . . Hacking | -11 -10 -10 -9 -9 -9 -8 -8 -7 -7 -7 -7 --------- Run | Yrd Mat Min Mat Min Exi Min Mat Fac Gar Fac Gar Machines Accessed 13 | . . 1 1 . 1 . 5 1 1 1 2 Terminals 9 | . . . 1 . . . 5 . 1 . 2 Fabricators . | . . . . . . . . . . . . Repair Stations . | . . . . . . . . . . . . Recycling Units . | . . . . . . . . . . . . Scanalyzers . | . . . . . . . . . . . . Garrison Access 2 | . . . . . . . . 1 . 1 . Total Hacks 24 | . . 1 1 . 1 . 11 1 2 1 6 Successful 9 | . . 1 1 . 1 . 3 1 . 1 1 Failed 15 | . . . . . . . 8 . 2 . 5 Catastrophic 3 | . . . . . . . 2 . . . 1 Database Lockouts . | . . . . . . . . . . . . Manual 15 | . . . 1 . 1 . 11 . 2 . . Terminals 20 | . . . 1 . . . 11 . 2 . 6 Fabricators . | . . . . . . . . . . . . Repair Stations . | . . . . . . . . . . . . Recycling Units . | . . . . . . . . . . . . Scanalyzers . | . . . . . . . . . . . . Garrison Access 2 | . . . . . . . . 1 . 1 . Terminal Hacks 6 | . . 1 1 . 1 . 2 . . . 1 Open Door 1 | . . 1 . . . . . . . . . Branch Access Points 1 | . . . . . . . 1 . . . . Emergency Access Points 1 | . . . . . . . . . . . 1 Hauler Manifests 2 | . . . 1 . . . 1 . . . . Derelict Proto ID Bank 1 | . . . . . 1 . . . . . . Fabricator Hacks . | . . . . . . . . . . . . Repair Station Hacks . | . . . . . . . . . . . . Recycling Unit Hacks . | . . . . . . . . . . . . Scanalyzer . | . . . . . . . . . . . . Garrison Access Hacks 2 | . . . . . . . . 1 . 1 . Unlock Access 2 | . . . . . . . . 1 . 1 . Unauthorized Hacks 1 | . . . . . . . 1 . . . . Terminals 1 | . . . . . . . 1 . . . . Botnet 1 | . . . . . . . 1 . . . . Fabricators . | . . . . . . . . . . . . Repair Stations . | . . . . . . . . . . . . Recycling Units . | . . . . . . . . . . . . Scanalyzers . | . . . . . . . . . . . . Garrison Access . | . . . . . . . . . . . . Data Cores Recovered . | . . . . . . . . . . . . Used . | . . . . . . . . . . . . Hacking Detections 9 | . . . . . . . 5 1 1 . 2 Full Trace Events 3 | . . . . . . . 1 . . . 2 Feedback Events . | . . . . . . . . . . . . Feedback Blocked . | . . . . . . . . . . . . Robot Schematics Acquired . | . . . . . . . . . . . . Robots Built . | . . . . . . . . . . . . Authchips . | . . . . . . . . . . . . Time . | . . . . . . . . . . . . Total Robot Build Rating . | . . . . . . . . . . . . Part Schematics Acquired . | . . . . . . . . . . . . Parts Built . | . . . . . . . . . . . . Authchips . | . . . . . . . . . . . . Time . | . . . . . . . . . . . . Total Part Build Rating . | . . . . . . . . . . . . Parts Repaired . | . . . . . . . . . . . . Time . | . . . . . . . . . . . . Parts Recycled . | . . . . . . . . . . . . Recycled Matter . | . . . . . . . . . . . . Retrieved Matter . | . . . . . . . . . . . . Retrieved Components . | . . . . . . . . . . . . Parts Scanalyzed . | . . . . . . . . . . . . Part Schematics Acquired . | . . . . . . . . . . . . Parts Damaged . | . . . . . . . . . . . . Bothacking | -11 -10 -10 -9 -9 -9 -8 -8 -7 -7 -7 -7 ------------ Run | Yrd Mat Min Mat Min Exi Min Mat Fac Gar Fac Gar Used RIF Installer 1 | . . . . . . . . . . . 1 Robots Hacked 2 | . . . . . . . . . . . 2 Non-combat . | . . . . . . . . . . . . Combat 2 | . . . . . . . . . . . 2 Robot Hacks Applied 2 | . . . . . . . . . . . 2 formatsys_high 2 | . . . . . . . . . . . 2 Relay Couplers Released 7 | . . . . . . . . . . . 7 Machine Destruction 7 | . . . . . . . . . . . 7 Attached 2 | . . . . . . . . . . . 2 Fabnet Peak Effective % . | . . . . . . . . . . . . Robots Rewired 3 | . . . . . . . . . 3 . . Allies Hacked . | . . . . . . . . . . . . Hacks Repelled . | . . . . . . . . . . . . Allies | -11 -10 -10 -9 -9 -9 -8 -8 -7 -7 -7 -7 -------- Run | Yrd Mat Min Mat Min Exi Min Mat Fac Gar Fac Gar Total Allies 7 | . . . . 2 . . . . 3 . 2 Largest Group 3 | . . . . 2 2 . . . 3 . 2 Highest-Rated Group 45 | . . . . 45 45 . . . 36 . 32 Highest-Rated Ally 31 | . . . . 31 31 . . . 12 . 16 Total Orders . | . . . . . . . . . . . . Ally Attacks 45 | . . . . . . . . . 25 . 20 Total Damage 443 | . . . . . . . . . 241 . 202 Kills 4 | . . . . . . . . . 2 . 2 Allies Corrupted 1 | . . . . . . . . . 1 . . Allies Melted . | . . . . . . . . . . . . Intel | -11 -10 -10 -9 -9 -9 -8 -8 -7 -7 -7 -7 ------- Run | Yrd Mat Min Mat Min Exi Min Mat Fac Gar Fac Gar Robot Analysis Total . | . . . . . . . . . . . . Derelict Logs Recovered 2 | . . 1 . 1 . . . . . . . Drone Launches . | . . . . . . . . . . . . Drone Recoveries . | . . . . . . . . . . . . Exploration | -11 -10 -10 -9 -9 -9 -8 -8 -7 -7 -7 -7 ------------- Run | Yrd Mat Min Mat Min Exi Min Mat Fac Gar Fac Gar Turns Passed 8462 | 53 80 317 978 304 481 261 1314 292 2540 100 1742 Spaces Moved 4323 | 46 71 288 415 145 249 124 821 148 1172 58 786 Core 3 | 2 . . . . . . . . . . 1 Treads 1718 | . . . . . . . . . 978 58 682 Legs 1861 | . . . 180 145 249 124 821 148 194 . . Wheels 638 | 44 71 288 235 . . . . . . . . Hover 103 | . . . . . . . . . . . 103 Flight . | . . . . . . . . . . . . Fastest Speed 50 | 50 90 90 90 190 190 190 120 120 166 170 136 Average Speed 157 | 87 90 90 139 190 190 190 120 182 188 170 164 Slowest Speed 600 | 90 90 95 260 190 190 190 120 190 330 170 600 Overloaded Moves . | . . . . . . . . . . . . Propulsion Burnouts . | . . . . . . . . . . . . Robots Hopped . | . . . . . . . . . . . . Cave-ins Triggered 1 | . . . . . . . . . 1 . . Exploration Rate (%) 39 | 3 25 53 49 46 43 44 71 6 80 2 57 Regions Visited 11 Branch Regions 4 Pre-discovered Areas 1 | . . . . 1 . . . . . . . Known Exits Taken 3 | . . . . . . . 1 1 . 1 . Unknown Exits Taken 7 | 1 1 1 1 1 1 1 . . . . . Scrap Searched 2 | . . 1 . 1 . . . . . . . Spaces Dug 9 | . . . . . . . . . 3 . 6 Terrain Destroyed 205 | . . . 28 . . . 78 3 50 . 46 Melee 6 | . . . . . . . . . . . 6 Projectile 19 | . . . . . . . . . 11 . 8 AOE 180 | . . . 28 . . . 78 3 39 . 32 Terrain Rammed . | . . . . . . . . . . . . Walls Destroyed . | . . . . . . . . . . . . Machines Disabled . | . . . . . . . . . . . . Actions | -11 -10 -10 -9 -9 -9 -8 -8 -7 -7 -7 -7 --------- Run | Yrd Mat Min Mat Min Exi Min Mat Fac Gar Fac Gar Total 5364 | 55 78 317 661 173 257 140 1063 162 1351 59 1048 Wait 373 | 3 3 12 109 24 . 5 134 1 20 . 62 Move 4312 | 45 70 287 414 144 248 123 820 148 1169 58 786 Hop . | . . . . . . . . . . . . Pick Up 52 | 1 1 3 13 1 1 1 13 3 7 1 7 Fast Attach 37 | 6 . 1 10 . 3 . . . 10 . 7 Attach 25 | . . 1 7 . . . 2 3 8 . 4 Detach 7 | . . . 3 . . . . . 3 . 1 Swap 77 | . . 1 21 2 1 3 20 3 11 . 15 Drop 51 | . . . 13 1 4 3 14 . 7 . 9 Fire 265 | . 4 12 70 . . 5 57 4 76 . 37 Melee 103 | . . . . . . . . . . . 103 Ram 1 | . . . 1 . . . . . . . . Kick 4 | . . . . 1 . . 3 . . . . Crush 8 | . . . . . . . . . 8 . . Escape Stasis 29 | . . . . . . . . . 16 . 13 Rewire 16 | . . . . . . . . . 16 . . Trap 4 | . . . . . . . . . . . 4 Miscellaneous . | . . . . . . . . . . . . Route ------- -11/Scrapyard -10/Materials -10/Mines -9/Materials -9/Mines -9/Exiles -8/Mines -8/Materials (discovered 2 exits: *Fac x2) -7/Factory -7/Garrison (discovered 4 exits: *Fac x4) -7/Factory -7/Garrison (discovered 2 exits: [*Fac x2]) History --------- Turn | Location | Event 18 | -11/Scrapyard | Discovered new exit (range 15) 54 | -11/Scrapyard | Entered Materials 99 | -10/Materials | Discovered new exit (range 15) 134 | -10/Materials | Entered Mines 217 | -10/Mines | Discovered new exit (range 5) 267 | -10/Mines | Learned 2 Materials zone layouts 300 | -10/Mines | Build established: Mutant 338 | -10/Mines | Found the Drone Emporium 341 | -10/Mines | Found Prototype Device 341 | -10/Mines | Identified Splice Drone Bay 451 | -10/Mines | Entered Materials 451 | -9/Materials | Evolved 2 slots: Utility x1, Weapon x1 803 | -9/Materials | Core integrity fell below 50% 1004 | -9/Materials | Destroyed 7 combat bots 1004 | -9/Materials | Core integrity fell below 20% 1044 | -9/Materials | Lost 7 parts (3n4w) 1326 | -9/Materials | Build established: Scavenger-Skirmisher 1341 | -9/Materials | Discovered new exit (range 16) 1429 | -9/Materials | Entered Mines 1607 | -9/Mines | Learned location of Storage (-9) 1695 | -9/Mines | Build established: Scavenger-Tank 1700 | -9/Mines | Deemed a non-threat by the Exiles lab entrance 1702 | -9/Mines | Discovered new exit (range 5) 1733 | -9/Mines | Entered Exiles 1733 | -9/Exiles | Accompanied by 2 allies 1763 | -9/Exiles | Led the pair of lost Derelicts to a safe place 1779 | -9/Exiles | Met 8R-AWN 1813 | -9/Exiles | Met EX-HEX 1868 | -9/Exiles | Met EX-BIN 1896 | -9/Exiles | Aligned with FarCom system 1898 | -9/Exiles | Given EX-Vault access code 1952 | -9/Exiles | Opened EX-Vault 1986 | -9/Exiles | Found Longsword +1 2028 | -9/Exiles | Warned to stay clear of 0b10 Research branches 2064 | -9/Exiles | Build established: Scavenger-Mutant 2157 | -9/Exiles | Discovered new exit (range 15) 2214 | -9/Exiles | Left Exiles lab with Longsword +1 2214 | -9/Exiles | Entered Mines 2448 | -8/Mines | Discovered new exit (range 3) 2475 | -8/Mines | Entered Materials 2475 | -8/Materials | Evolved 2 slots: Propulsion x1, Weapon x1 2517 | -8/Materials | Build established: Scavenger-Skirmisher 2896 | -8/Materials | Build established: Skirmisher 2973 | -8/Materials | Discovered new exit (range 3) 3201 | -8/Materials | Discovered new exit (range 15) 3671 | -8/Materials | Identified exit to Factory 3675 | -8/Materials | First assault squad dispatched 3789 | -8/Materials | Entered Factory 3789 | -7/Factory | Evolved 2 slots: Weapon x2 4081 | -7/Factory | Identified exit to Garrison 4081 | -7/Factory | Entered Garrison 4084 | -7/Garrison | Build established: Executioner 4163 | -7/Garrison | Triggered checkpoint 4349 | -7/Garrison | Triggered checkpoint 4379 | -7/Garrison | Heavy support dispatched to Factory 4494 | -7/Garrison | Lost 3 parts (2n1w) 4522 | -7/Garrison | Crushed by falling debris 4553 | -7/Garrison | Lost 4 parts (2n1u1w) 4619 | -7/Garrison | Triggered checkpoint 4757 | -7/Garrison | Triggered checkpoint 4816 | -7/Garrison | Build established: Scavenger-Executioner 4834 | -7/Garrison | Discovered new exit (range 13) 4889 | -7/Garrison | Triggered checkpoint 4954 | -7/Garrison | Discovered new exit (range 5) 5115 | -7/Garrison | Lost 3 allies 5325 | -7/Garrison | Triggered checkpoint 5452 | -7/Garrison | Heavy support dispatched to Factory 5559 | -7/Garrison | Discovered new exit (range 14) 5741 | -7/Garrison | H-XX Assembler disabled 5785 | -7/Garrison | Triggered checkpoint 5942 | -7/Garrison | Build established: Executioner 5947 | -7/Garrison | Triggered checkpoint 5951 | -7/Garrison | Core integrity fell below 50% 5975 | -7/Garrison | Triggered checkpoint 6135 | -7/Garrison | Discovered new exit (range 13) 6160 | -7/Garrison | Attempted to access garrison exit controls, blocked by remote lockdown 6459 | -7/Garrison | Attempted to access garrison exit controls, blocked by remote lockdown 6621 | -7/Garrison | Entered Factory 6721 | -7/Factory | Identified exit to Garrison 6721 | -7/Factory | Entered Garrison 6771 | -7/Garrison | Triggered checkpoint 7103 | -7/Garrison | Triggered checkpoint 7192 | -7/Garrison | Discovered new exit (range 11) 7283 | -7/Garrison | Triggered checkpoint 7360 | -7/Garrison | Core integrity fell below 20% 7390 | -7/Garrison | Lost 5 parts (1n4w) 7666 | -7/Garrison | Installed Relay Interface Framework 7720 | -7/Garrison | Build established: Scavenger-Mutant 7747 | -7/Garrison | Garrison Relay disabled 7885 | -7/Garrison | Triggered checkpoint 7985 | -7/Garrison | Discovered new exit (range 13) 8032 | -7/Garrison | Garrison Relay disabled 8051 | -7/Garrison | Triggered checkpoint 8052 | -7/Garrison | System corruption reached 10% 8327 | -7/Garrison | Build established: Bothacker-Mutant 8397 | -7/Garrison | Triggered checkpoint 8458 | -7/Garrison | Triggered checkpoint 8463 | -7/Garrison | Destroyed by S-27 Virus with Autogun Last Messages --------------- 08442_ Field strength at 58. 08443_ Field strength at 51. 08444_ Field strength at 44. 08445_ Field strength at 37. 08446_ Field strength at 30. 08447_ Field strength at 23. 08448_ Field strength at 16. 08449_ Field strength at 9. 08450_ Field strength at 2. 08451_ Stasis field depleted. 08453_ System corrupted: Heat flow error (+119). 08457_ Connecting with Garrison Terminal... >>Access(Emergency) Found 39 emergency access points. Map updated. 08457_ ALERT: Suspicious activity at Terminal G003. Transmitting hostile system tracking data. 08458_ Beams of light sweep through the air. An alarm sounds. 08459_ Lgt. Angular Momentum Engine destroyed. 08462_ Trooper 4a destroyed. Map ----- +----------------------------------------------------+ | ?????????????????????????????????????????????????? | | ?????????????????????????????????????????????????? | | ?????????????????????????????????????????????????? | | ?????????????????????????????????????????????????? | | ?????????????????????????????????????????????????? | | ?????????????????????????????????????????????????? | | ?????????????????????????????????????????????????? | | ?????????????????????????????????????????????????? | | ?????????????????????????????????????????????????? | | ?????????????????????????????????????????????????? | | ?????????????????????????????????????????????????? | | ?????????????????????????????????????????????????? | | ???????????????????????????????????????????####### | | ???????????????????????????????????????????# | | ??+????????????Y?Y?????????????????????????# | | ???????????????????????????????????????????# #### | | ???????????+???????????????????????????????# #??? | | ???+???????+???????????????????????????????# #??? | | ????????????????+????#?????????????????????# #??? | | ?????????????????????# ????????????????????# #??? | | ?????????????????????# ????????????????????# +??? | | ?????????????????????# ???????????????????# #??? | | ?????????????????????# ???????????????????# #??? | | ???????????????+?????+ +???????????+?????# #??? | | ?????????????????????# ###+##+##+### ##% ##?? | | ?????????????????????# @ ^ s ### | | ?????????????????????# = s + | | ?????????????????????# !% ### | | ?????????????????????######T##### ## ## #?? | | ??????????????????????????###?### ## ## ### | | ??????????????????????????????#%" * [= | | ??????????????????????????????#" [%= !%= # | | ??????????????????????????????# # | | ??????????????????????????????# # | | ??????????????????????????????### ## ## ### | | ??????????????????????########### ## #" *### | | ??????????????????????# ! [ | | ??????????????????????# ^ == | | ??????????????????????# ###+#### ==### | | ??????????????????????# #??????##=%## ###"##?# | | ??????????????????????# #???????# ## ###!#??# | | ??????????????????????# #???????# #########=#??# | | ??????????????????????# #???????# #??????##!#### | | ??????????????????????# #???????+ #??????#%[[!= | | ??????????????????????# #???????# #??????####### | | ?????????????########## ##+###### #????????????# | | ?????????????# #????#####???# | | ?????????????# #???## #??## | | ?????????????# ####### ###+######+##???# ####" | | ?????????????# #?????# #???????????????# * | +----------------------------------------------------+ Best States ------------- Heat Dissipation 53 Coolant Potential 65 Energy Generation 18 Energy Capacity 290 Matter Stores 300 Matter Capacity 300 Sight Range 16 Terrain Scan Density 10 Armor Coverage 225 Weapon Cycling 15 Evasion (%) 55 Targeting Accuracy 6 Recoil Reduction 3 Matter Filtering 30 Kinecelleration 40 Relay Coupler Types 2 Relay Coupler Value 44 Item Schematics ----------------- None Robot Schematics ------------------ None Fabricated ------------ Nothing Alien Tech Used ----------------- None Achievements -------------- None Challenges ------------ None Game ------ Seed ArmorMolecularStorage Manual? 0 Play Time 01:13:46 Cumulative 114.7 hours Start 2024.10.13 @ 12:00:40 End 2024.10.13 @ 18:47:58 Sessions 1 Manual Loads 0 Difficulty Rogue Special Mode None Game No. 197 Rogue 197 Adventurer 0 Explorer 0 Win Type - Total 1 Types 1/0/0/0/0/0/0/0/0 Lore% 51 Gallery% 57 Achievement% 46 Wizard Run 0 Options --------- Layout 0 ASCII 0 Keyboard 1 Movement Numpad Keybinds 0 Fullscreen 2 Font 18/SmallcapsGlow Map View 76x50 Zoom Use 0% Tactical HUD 1 Map Filters NONE Filters NONE Steam 1 RUN: 2f46ffc3-bd04-4a8b-8938-f37bea4e1fed